[Event "41st Zalakaros Festival 2022"]
[Site "Zalakaros"]
[Date "2022.06.11"]
[Round "7.7"]
[White "Ianov, Viktor"]
[Black "Fodor, Balazs"]
[Result "1/2-1/2"]
[ECO "A05"]
[WhiteElo "2279"]
[BlackElo "2126"]
[Annotator "TA"]
[PlyCount "118"]
[EventDate "2022.06.05"]
[EventType "swiss"]
[EventCountry "HUN"]
[SourceTitle "playchess.com"]
[Source "ChessBase"]
[SourceQuality "1"]
[TimeControl "40/5400+30:1800+30"]

{[%evp 14,118,32,30,27,35,35,35,79,77,93,99,97,70,91,85,96,87,96,98,89,89,134,134,131,131,135,127,177,163,155,163,163,156,204,203,217,224,234,221,225,218,204,211,208,212,204,210,210,184,256,243,238,78,76,70,135,141,133,78,127,59,59,0,64,52,266,226,256,229,442,435,324,375,5077,5073,4570,2072,1074,184,539,536,510,149,172,8,8,8,8,8,8,8,8,8,8,8,8,8,8,8,8,8,8,8,8,8,30]} 1. Nf3 {[%emt 0:00:32]} Nf6 {[%emt 0:00:48]} 2. g3 {[%emt 0:00:10]} g6 {[%emt 0:00:07]} 3. b3 {[%emt 0:00:09]} Bg7 {[%emt 0:00:07]} 4. Bb2 {[%emt 0:00:10]} O-O {[%emt 0:00:13]} 5. Bg2 {[%emt 0:00:08]} c5 {[%emt 0:00:34]} 6. c4 {[%emt 0:00:10]} d6 {[%emt 0:00:29]} 7. d4 {[%emt 0:00:10]} cxd4 {[%emt 0:00:07] Recently 7...Ne4 got a lot of attention.} 8. Nxd4 {[%emt 0:00:10]} d5 {[%emt 0:00:08] E60: King's Indian: Unusual lines and Fianchetto Variation without Nc3.} 9. cxd5 {[%emt 0:01:22]} Nxd5 {[%emt 0:02:59]} 10. O-O {[%emt 0:00:11]} Nc6 {[%emt 0:07:42] White is slightly better.} 11. Nxc6 $1 {[%emt 0:01:52]} bxc6 {[%emt 0:00:08]} 12. Bxg7 {[%emt 0:00:09]} Kxg7 {[%emt 0:00:08]} 13. Qc2 {[%emt 0:00:15]} Qb6 {[%emt 0:06:16]} 14. Nc3 {[%emt 0:01:07] [#]} Qc5 $146 {[%emt 0:12:47]} ({Predecessor:} 14... Nb4 15. Qe4 Be6 16. Rfc1 a5 17. Na4 Qa7 18. Qe5+ Kg8 19. Nc5 Bd5 20. e4 f6 21. Qc3 Bf7 22. Bf1 Qb6 23. a3 Na6 24. Nd7 {1-0 (24) Lomako,P (2417)-Gorbatenko,K (2086) Perm 2009}) 15. Rac1 {[%emt 0:01:04][%cal Ba1c1,Bc1c3,Bc3c6][%mdl 32]} Qxc3 {[%emt 0:00:08]} 16. Qxc3+ {[%emt 0:00:14]} Nxc3 {[%emt 0:00:06]} 17. Rxc3 {[%emt 0:00:09]} Bb7 {[%emt 0:00:11]} 18. Bxc6 {[%emt 0:00:39] White is more active.} Bxc6 {[%emt 0:00:06]} 19. Rxc6 $16 {[%emt 0:00:08][%mdl 4096] Endgame KRR-KRR} a5 {[%emt 0:00:05]} 20. Rfc1 {[%emt 0:02:25]} a4 {[%emt 0:02:36]} (20... Rfb8 $16 {keeps fighting.} 21. Rc7 Kf8) 21. b4 $18 {[%emt 0:00:19]} Rfd8 {[%emt 0:05:18]} 22. a3 {[%emt 0:00:58]} Rd2 {[%emt 0:00:16]} 23. R6c2 {[%emt 0:00:24]} Rd5 {[%emt 0:01:44]} (23... Rad8 $16 24. Kg2 Rxc2 25. Rxc2 Rd1) 24. Kg2 {[%emt 0:00:42]} Ra6 {[%emt 0:03:52]} 25. Rc6 {[%emt 0:01:15]} Ra8 {[%emt 0:01:49]} 26. Rc8 {[%emt 0:00:13]} Ra6 {[%emt 0:08:07]} 27. R1c6 {[%emt 0:00:32]} Rxc6 {[%emt 0:00:08]} 28. Rxc6 {[%emt 0:00:10] KR-KR} Rd2 {[%emt 0:00:02]} 29. Ra6 $1 {[%emt 0:00:12]} Rxe2 {[%emt 0:00:06]} 30. Rxa4 {[%emt 0:00:10]} Rb2 {[%emt 0:00:02]} 31. Ra5 {[%emt 0:00:24]} f5 {[%emt 0:00:50]} (31... Kf6 $142 32. b5 e5) 32. h4 {[%emt 0:02:56]} Kf6 {[%emt 0:06:56]} 33. Rc5 {[%emt 0:02:21]} (33. b5 $18) 33... e5 $16 {[%emt 0:00:59]} 34. Rc6+ {[%emt 0:00:46]} Kg7 {[%emt 0:00:34]} (34... Ke7 $14) 35. Rc7+ {[%emt 0:01:02]} Kh6 {[%emt 0:01:45]} 36. Kf1 {[%emt 0:01:50]} ({White should play} 36. Rc4 $1) 36... e4 {[%emt 0:00:12]} (36... Rb3 $142) 37. Rc3 {[%emt 0:01:29]} ({Better is} 37. Rc4 $1 $16) 37... Kh5 $14 {[%emt 0:00:59]} 38. Kg2 {[%emt 0:01:29]} (38. a4 $14) 38... Kg4 {[%emt 0:00:45]} (38... g5 $11) 39. Rc4 $1 {[%emt 0:01:47]} Rb3 $2 {[%emt 0:01:33]} (39... Kh5 $14) 40. a4 $18 {[%emt 0:00:00][%cal Ba3a4,Ba4a5,Ba5a6,Ba6a7][%mdl 32]} Rb2 {[%emt 0:00:00]} 41. b5 $1 {[%emt 0:01:17]} h6 $2 {[%emt 0:06:39]} (41... Kh5 {might work better.} 42. Rc3 Kg4) 42. a5 {[%emt 0:03:27] Hoping for b6.} ({Not} 42. Rc6 g5 $16) 42... Rxb5 {[%emt 0:00:25] [#]} 43. Ra4 {[%emt 0:00:08]} ({And not} 43. f3+ Kh5 $11) 43... Kh5 $2 {[%emt 0:01:22]} (43... Rb7 44. f3+ Kh5) 44. a6 {[%emt 0:00:09] White wants to mate with a7.} Rb8 {[%emt 0:00:05]} 45. a7 {[%emt 0:00:10]} Ra8 {[%emt 0:00:05]} 46. Kf1 $2 {[%emt 0:02:59]} (46. Kh3 g5 47. hxg5) 46... g5 $2 {[%emt 0:08:46]} (46... Kg4 47. Ke2 f4 48. gxf4 Kxf4) 47. hxg5 {[%emt 0:00:12]} hxg5 {[%emt 0:00:08]} 48. Kg2 $2 {[%emt 0:00:22]} (48. Ra5 $18 {Threatens to win with Kg1.} Kg6 49. Ke2) 48... f4 $16 {[%emt 0:05:35] [#]} 49. gxf4 $2 {[%emt 0:01:05]} ({White should try} 49. Kh3 $1 $18) 49... gxf4 $11 {[%emt 0:00:06] The position is equal.} 50. Rxe4 {[%emt 0:01:11] Re5+ is the strong threat.} (50. Ra5+ {is more complex.} Kg6 51. Kf1 Kf6 52. Ra6+) 50... Rxa7 {[%emt 0:00:04]} 51. Rxf4 {[%emt 0:00:11]} Kg5 {[%emt 0:00:16]} 52. Rf8 {[%emt 0:00:23]} Ra4 {[%emt 0:00:41]} 53. Kg3 {[%emt 0:00:23]} Rg4+ {[%emt 0:00:49]} 54. Kf3 {[%emt 0:00:14] White threatens Rg8+ and mate.} Ra4 {[%emt 0:00:07]} 55. Rg8+ {[%emt 0:00:20]} Kf5 {[%emt 0:00:04]} 56. Kg3 {[%emt 0:00:12]} Ra3+ {[%emt 0:00:21]} 57. f3 {[%emt 0:00:11]} Rb3 {[%emt 0:00:10]} 58. Ra8 {[%emt 0:00:11]} Rb5 {[%emt 0:02:10]} 59. Rf8+ {[%emt 0:00:59]} Ke5 {Black escapes into a draw.  Weighted Error Value: White=0.39/Black=0.35} 1/2-1/2

[Event "41st Zalakaros Festival 2022"]
[Site "Zalakaros"]
[Date "2022.06.11"]
[Round "7.8"]
[White "Bokorovics, Bertalan"]
[Black "Tulchynskyi, Feliks"]
[Result "1-0"]
[ECO "B17"]
[WhiteElo "2221"]
[BlackElo "2068"]
[Annotator "TA"]
[PlyCount "119"]
[EventDate "2022.06.05"]
[EventType "swiss"]
[EventCountry "HUN"]
[SourceTitle "playchess.com"]
[Source "ChessBase"]
[SourceQuality "1"]
[TimeControl "40/5400+30:1800+30"]

{[%evp 20,119,24,0,14,0,0,0,0,0,0,-9,32,30,70,60,52,45,94,93,106,18,43,45,47,0,0,0,49,-25,-18,-27,32,32,64,37,61,50,135,155,118,77,244,216,212,227,235,227,217,151,445,149,724,155,143,96,571,565,541,293,767,768,751,748,735,731,728,710,682,664,1010,802,748,476,543,432,375,327,781,1097,1059,980,702,659,1685,1685,1685,1685,1685,1685,1685,1685,1677,1670,1656,1642,1642,1616,1531,1310,1043,1035]} 1. e4 {[%emt 0:00:32]} c6 {[%emt 0:00:39]} 2. d4 {[%emt 0:00:03]} d5 {[%emt 0:00:09]} 3. Nc3 {[%emt 0:00:02][%cal Bb1c3,Bc3e4,Be4g5][%mdl 32]} dxe4 {[%emt 0:00:15]} 4. Nxe4 {[%emt 0:00:03]} Nd7 {[%emt 0:00:11]} 5. Ng5 {[%emt 0:00:17]} Ngf6 {[%emt 0:00:19]} 6. Bd3 {[%emt 0:00:24]} e6 {[%emt 0:00:09]} 7. Qe2 {[%emt 0:01:23]} Bd6 {[%emt 0:00:44]} 8. N1f3 {[%emt 0:00:19]} h6 {[%emt 0:00:34]} 9. Ne4 {[%emt 0:00:06]} Nxe4 {[%emt 0:00:23]} 10. Qxe4 {[%emt 0:00:04]} Qc7 {[%emt 0:00:21]} 11. Bd2 {[%emt 0:02:09]} c5 {[%emt 0:00:59] B17: Caro-Kann: Modern Line (4...Nd7).} 12. Qg4 {[%emt 0:04:22]} Kf8 {[%emt 0:01:05]} 13. O-O {[%emt 0:03:31]} c4 {[%emt 0:00:56] The position is equal.} 14. Be2 {[%emt 0:00:48] [#]} b6 $146 {[%emt 0:05:14]} ({Predecessor:} 14... b5 15. a4 g5 16. Qh3 Kg8 17. axb5 e5 18. Ba5 Qb8 19. Nd2 exd4 20. Nxc4 Ne5 {1-0 (43) Tiviakov,S (2615)-Shabalov,A (2565) Amsterdam 1996}) 15. a3 {[%emt 0:06:05]} Nf6 {[%emt 0:03:43]} 16. Qh4 {[%emt 0:00:45][%cal Of3e5]} Nd5 {[%emt 0:01:01]} 17. Ne5 $1 {[%emt 0:04:02]} Ba6 {[%emt 0:12:54]} 18. Bb4 {[%emt 0:11:10]} Nxb4 {[%emt 0:08:51]} (18... Rd8 $1 $14) 19. axb4 $16 {[%emt 0:00:06]} Bb7 {[%emt 0:00:39]} 20. c3 {[%emt 0:03:47]} (20. Nxc4 $16 Bf4 21. c3) 20... Bd5 {[%emt 0:02:46]} 21. f4 {[%emt 0:02:39]} Kg8 {[%emt 0:25:24]} 22. f5 {[%emt 0:10:52]} (22. Bf3 $14 {is superior.}) 22... Bxe5 $11 {[%emt 0:03:38]} 23. dxe5 {[%emt 0:00:17]} Kh7 {[%emt 0:01:10]} (23... exf5 $11 24. Rxf5 Kh7) 24. Rae1 {[%emt 0:04:17]} (24. fxe6 $14 Bxe6 25. Qe4+ g6 26. Rf6) 24... exf5 {[%emt 0:02:47]} 25. Rxf5 {[%emt 0:01:00]} Be6 {[%emt 0:01:11]} ({Black should try} 25... Rhe8 $11) 26. Rf2 $14 {[%emt 0:01:37]} Rhe8 {[%emt 0:06:36]} 27. Qe4+ {[%emt 0:03:45]} Kg8 {[%emt 0:00:42]} 28. Bd1 $1 {[%emt 0:02:56]} Rad8 {[%emt 0:01:06]} (28... f5 $14 29. Qe3 (29. exf6 $2 Bf7 $19) 29... Kh7) 29. Bc2 $36 {[%emt 0:00:18][%mdl 2048] Threatens to win with Qh7+. Black is under strong pressure.} g6 {[%emt 0:00:21]} 30. Rf6 {[%emt 0:02:24] Qf4 is the strong threat.} Qe7 $2 {[%emt 0:02:51]} (30... Qd7 $16 {might work better.}) 31. Qf4 {[%emt 0:03:33][%cal Oc2g6] Strongly threatening Bxg6!} (31. Ba4 Rf8 $16) 31... Kg7 {[%emt 0:01:23]} 32. Rf1 {[%emt 0:03:19]} a5 {[%emt 0:02:21]} 33. bxa5 {[%emt 0:01:08]} bxa5 {[%emt 0:00:04]} 34. h4 {[%emt 0:00:45]} Bd5 $2 {[%emt 0:05:55] [#] Inhibits Rf3.} (34... Rd3 $16 {keeps fighting.} 35. Bxd3 cxd3) 35. Re1 $2 {[%emt 0:07:36]} (35. Bxg6 $1 $18 {[%mdl 512]} fxg6 36. h5) 35... Qd7 {[%emt 0:03:06][%mdl 8192]} (35... Rb8 $16) 36. h5 $2 {[%emt 0:08:12]} (36. Re3 $18 {is the precise move to win. Hoping for Rg3.} Qa7 37. Kh1) 36... g5 {[%emt 0:00:31]} 37. Qf2 {[%emt 0:01:31] Dancing on a razor blade. 0x0.001762dfad9bdp-1022s more active pieces.} (37. Qd4 $142 {[%cal Oe5e6] Intending e6! and mate.} Qe7 38. Rd6) 37... Qg4 {[%emt 0:03:38][%mdl 8192] [#] Prevents e6.} (37... Be6 $16) 38. Rg6+ $3 $18 {[%emt 0:01:15][%mdl 512]} Kf8 {[%emt 0:00:10][%cal Og4g2]} 39. Rxh6 {[%emt 0:01:03] Rh8+ would kill now.} Qxg2+ $2 (39... Qf4 40. Qxf4 gxf4) 40. Qxg2 {[%emt 0:00:00]} Bxg2 {[%emt 0:00:00]} 41. Rh8+ {[%emt 0:00:32]} (41. Kxg2 Rd2+ 42. Kg3 Rxc2 $16) 41... Ke7 {[%emt 0:02:56]} 42. Rxe8+ {[%emt 0:00:06]} Kxe8 {[%emt 0:00:03][%mdl 4096] Endgame KRB-KRB} 43. Ba4+ {[%emt 0:00:07]} (43. Kxg2 Rd2+ 44. Kg3 Rxc2 $16) 43... Ke7 {[%emt 0:00:30]} 44. Kxg2 {[%emt 0:00:05] KRB-KR} Rd2+ {[%emt 0:00:04]} 45. Kf3 {[%emt 0:01:18]} Rxb2 {[%emt 0:02:22]} 46. Re4 {[%emt 0:02:41]} Rh2 {[%emt 0:00:59]} 47. Rxc4 {[%emt 0:00:25]} Rxh5 {[%emt 0:00:14]} 48. Rc5 {[%emt 0:03:23]} f6 $2 {[%emt 0:01:02]} (48... Rh3+ 49. Ke2 Rh2+ 50. Ke3 Rh3+ 51. Kd2 Rh2+ 52. Ke1 Rh3 53. Rc7+ (53. Rxa5 Rxc3 54. Kd2 Rg3 $16) 53... Kf8) 49. exf6+ {[%emt 0:01:09] White is clearly winning.} Kxf6 {[%emt 0:00:07]} 50. Ke3 {[%emt 0:04:35]} Rh3+ {[%emt 0:00:16]} 51. Kd2 {[%emt 0:01:11]} g4 {[%emt 0:03:29]} 52. Rxa5 {[%emt 0:01:06]} g3 {[%emt 0:00:11]} 53. Bc6 {[%emt 0:00:26]} Rh2+ {[%emt 0:02:09]} 54. Kd3 {[%emt 0:01:08]} Rf2 {[%emt 0:00:43]} 55. Ra4 {[%emt 0:03:28]} Kf5 {[%emt 0:01:42]} 56. Bd7+ {[%emt 0:00:41]} Ke5 {[%emt 0:00:28]} 57. Rg4 {[%emt 0:00:40]} Rf3+ {[%emt 0:00:26]} 58. Kc4 {[%emt 0:00:50]} Kd6 {[%emt 0:00:35]} 59. Bc8 {[%emt 0:01:12]} Kc7 {[%emt 0:00:13]} 60. Be6 {[%emt 0:00:14] Weighted Error Value: White=0.77/Black=0.48} 1-0

[Event "41st Zalakaros Festival 2022"]
[Site "Zalakaros"]
[Date "2022.06.11"]
[Round "7.9"]
[White "Horak, Jiri"]
[Black "Bodrogi, Bendeguz"]
[Result "0-1"]
[ECO "A46"]
[WhiteElo "2161"]
[BlackElo "2198"]
[Annotator "TA"]
[PlyCount "96"]
[EventDate "2022.06.05"]
[EventType "swiss"]
[EventCountry "HUN"]
[SourceTitle "playchess.com"]
[Source "ChessBase"]
[SourceQuality "1"]
[TimeControl "40/5400+30:1800+30"]

{[%evp 11,96,17,12,-15,-11,-12,-17,-42,-37,-39,-8,-18,-2,-47,-14,-15,-10,-14,0,0,-7,-58,-39,-88,-73,-79,-64,-73,-62,-97,-72,-77,-75,-74,-70,-57,-22,-106,-62,-117,-92,-107,-107,-141,-91,-154,-107,-368,-373,-364,-328,-436,-405,-426,-417,-540,-540,-528,-513,-707,-681,-676,-693,-654,-596,-891,-642,-632,-621,-641,-640,-638,-651,-680,-631,-579,-579,-768,-745,-3729,-3270,-2977,-2509,-3968,-3600,-29994,-2764]} 1. d4 {[%emt 0:06:42]} Nf6 {[%emt 0:00:44]} 2. Nf3 {[%emt 0:00:05]} c5 {[%emt 0:00:09]} 3. c3 {[%emt 0:00:22]} g6 {[%emt 0:00:17]} 4. g3 {[%emt 0:00:04]} b6 {[%emt 0:00:12]} 5. Bg2 {[%emt 0:00:05]} Bb7 {[%emt 0:00:08]} 6. O-O {[%emt 0:00:13]} Bg7 {[%emt 0:00:25]} 7. Bf4 {[%emt 0:03:29] A49: 1 d4 Nf6 2 Nf3 g6 3 g3: Anti-King's Indian systems.} d6 {[%emt 0:04:15]} 8. Na3 {[%emt 0:06:25][%cal Oe2e4]} O-O {[%emt 0:00:34] [#]} 9. Ne1 $146 {[%emt 0:04:06] The position is equal.} ({Predecessor:} 9. Nc4 b5 10. Na3 Qb6 11. Nc2 Nbd7 12. Re1 Rad8 13. Qc1 cxd4 14. cxd4 Rc8 15. Qd1 {½-½ (75) Saralegui Cassan,M (2068)-Contin,D (2253) Montevideo 2018}) 9... Bxg2 {[%emt 0:06:34]} 10. Nxg2 {[%emt 0:00:07]} Nbd7 {[%emt 0:00:40][%cal Ob6b5]} 11. Qd2 {[%emt 0:08:39]} Qc7 {[%emt 0:05:22]} 12. Bh6 {[%emt 0:03:46]} Rfe8 {[%emt 0:05:37]} 13. Bxg7 {[%emt 0:00:20]} Kxg7 {[%emt 0:00:07]} 14. Rfd1 {[%emt 0:07:21]} Qb7 {[%emt 0:04:42]} 15. f3 {[%emt 0:07:19]} d5 {[%emt 0:05:55]} 16. Rac1 {[%emt 0:07:19]} (16. c4 $11) 16... e5 {[%emt 0:02:46]} 17. e3 {[%emt 0:00:16]} (17. dxc5 $15 Nxc5 18. Ne3) 17... Rad8 {[%emt 0:06:36]} 18. Nc2 {[%emt 0:03:03]} a5 {[%emt 0:19:02]} 19. Nge1 {[%emt 0:07:32]} h5 {[%emt 0:10:13]} 20. Ng2 {[%emt 0:04:19]} Re7 {[%emt 0:00:48]} 21. Rf1 {[%emt 0:01:01]} Rde8 {[%emt 0:00:30]} 22. Rce1 {[%emt 0:00:13]} b5 {[%emt 0:02:14]} 23. a3 {[%emt 0:03:07]} Qa7 {[%emt 0:04:02]} 24. h3 {[%emt 0:05:00]} (24. b4 $11 {remains equal.}) 24... Rc8 {[%emt 0:04:14]} 25. Kh2 {[%emt 0:02:16]} (25. g4 $15) 25... Qc7 {[%emt 0:00:41]} 26. Re2 {[%emt 0:04:01]} Nb6 {[%emt 0:02:13]} 27. Rfe1 {[%emt 0:03:45]} Rh8 {[%emt 0:03:49]} (27... e4 $142 28. f4 c4) 28. b3 {[%emt 0:08:25]} (28. f4 $142) 28... h4 {[%emt 0:03:18] Black is more active.} ({Black should try} 28... a4 29. bxa4 Nc4) 29. dxc5 $2 {[%emt 0:03:26][%mdl 8192] Loses the game.} (29. Nxh4 $17 {is the only way for White.} a4 30. dxc5 Qxc5 31. bxa4) 29... hxg3+ $19 {[%emt 0:00:06]} 30. Kxg3 {[%emt 0:00:19]} Qxc5 {[%emt 0:01:31]} 31. Rh1 {[%emt 0:01:07]} Rc7 {[%emt 0:01:19]} ({Stronger than} 31... e4 32. f4 $19) 32. b4 {[%emt 0:00:41]} Qd6 {[%emt 0:01:02]} 33. bxa5 {[%emt 0:00:21]} Nc4 {[%emt 0:00:05][%csl LRa3,LRa5,LRd2]} 34. Qe1 {[%emt 0:00:14]} d4 {[%emt 0:00:21][%cal Bd5d4,Bd4d3][%mdl 32]} 35. e4 {[%emt 0:00:28]} d3 {[%emt 0:00:09]} 36. Rd2 {[%emt 0:00:20]} Nxd2 {[%emt 0:01:00]} 37. Qxd2 {[%emt 0:00:05]} Nh5+ {[%emt 0:00:22][%cal Bf6h5,Bh5f4,Bf4g2][%mdl 32]} 38. Kf2 {[%emt 0:00:33]} Qc5+ {[%emt 0:00:04]} 39. Nce3 Qxc3 {[%emt 0:02:06]} 40. Rd1 {[%emt 0:00:00]} Nf4 {[%emt 0:00:00] aiming for ...Qd4.} 41. h4 {[%emt 0:06:02]} Qd4 {[%emt 0:05:57]} 42. Kg3 {[%emt 0:01:14]} Nxg2 {[%emt 0:02:39]} 43. Kxg2 {[%emt 0:01:28]} Rhc8 {[%emt 0:00:58][%cal Oc7c2] Threatens to win with ...Rc2!} 44. Kh3 {[%emt 0:02:29] [#]} Rc2 $1 {[%emt 0:03:08][%mdl 512]} 45. Nf5+ {[%emt 0:02:25]} (45. Qxd3 R2c3) 45... gxf5 {[%emt 0:00:43]} 46. Qg5+ {[%emt 0:00:39]} Kf8 {[%emt 0:00:35]} 47. Qh6+ {[%emt 0:01:57]} Ke8 {[%emt 0:00:42] ( -> ...Rf2)} 48. Qf6 {[%emt 0:02:23] [#]} fxe4 {[%emt 0:02:04] Weighted Error Value: White=0.97/Black=0.18 (very precise)} (48... Rh2+ $142 $3 {[%mdl 512]} 49. Kxh2 Qf2+ 50. Kh3 Qxf3+ 51. Kh2 Rc2+ 52. Rd2 Rxd2+ 53. Kg1 Qg2#) 0-1

[Event "41st Zalakaros Festival 2022"]
[Site "Zalakaros"]
[Date "2022.06.11"]
[Round "7.10"]
[White "Bernath, Bence"]
[Black "Pogany, Zsombor"]
[Result "0-1"]
[ECO "C82"]
[WhiteElo "2202"]
[BlackElo "2104"]
[Annotator "TA"]
[PlyCount "90"]
[EventDate "2022.06.05"]
[EventType "swiss"]
[EventCountry "HUN"]
[SourceTitle "playchess.com"]
[Source "ChessBase"]
[SourceQuality "1"]
[TimeControl "40/5400+30:1800+30"]

{[%evp 20,90,31,29,33,0,17,0,0,-2,-2,-12,-12,-12,-12,-13,-11,-8,-8,-14,0,-95,16,16,9,13,25,-13,0,0,0,0,10,25,25,23,22,0,0,0,23,0,0,3,3,0,0,0,0,0,0,0,0,-138,0,0,0,0,0,-312,-69,-401,-416,-6287,-5689,-2122,-1938,-29957,-29945,-29983,-29984,-29980,-70]} 1. e4 {[%emt 0:00:38]} e5 {[%emt 0:00:46]} 2. Nf3 {[%emt 0:00:33]} Nc6 {[%emt 0:00:12]} 3. Bb5 {[%emt 0:00:27]} a6 {[%emt 0:00:20]} 4. Ba4 {[%emt 0:00:29]} Nf6 {[%emt 0:00:31]} 5. O-O {[%emt 0:00:34]} Nxe4 {[%emt 0:00:24]} 6. d4 {[%emt 0:00:23]} b5 {[%emt 0:00:20]} 7. Bb3 {[%emt 0:00:04]} d5 {[%emt 0:00:08]} 8. dxe5 {[%emt 0:00:54]} Be6 {[%emt 0:00:15]} 9. c3 {[%emt 0:00:31]} Bc5 {[%emt 0:00:22]} 10. Qd3 {[%emt 0:00:32]} O-O {[%emt 0:01:48]} 11. Nbd2 {[%emt 0:02:23]} f5 {[%emt 0:01:24] C82: Open Ruy Lopez: 9 c3 without 9...Be7.} 12. exf6 {[%emt 0:00:33]} Nxf6 {[%emt 0:00:21]} 13. Bc2 {[%emt 0:02:14]} Bb6 {[%emt 0:03:36] The position is equal.} 14. Nb3 {[%emt 0:01:45]} Bg4 {[%emt 0:04:27]} 15. Nbd4 {[%emt 0:07:22]} Nxd4 {[%emt 0:13:09]} 16. Nxd4 {[%emt 0:00:07]} c5 {[%emt 0:07:19] [#]} 17. h3 $146 {[%emt 0:01:27]} ({Predecessor:} 17. Nf5 Qd7 18. Be3 d4 19. Nxd4 cxd4 20. cxd4 Rad8 21. f3 Be6 22. Rfd1 Rfe8 23. b3 Bf7 {0-1 (23) Litvinenko,E (1978)-Olsarova,T (2251) Plovdiv 2014}) 17... cxd4 {[%emt 0:09:39]} 18. hxg4 {[%emt 0:00:05]} dxc3 {[%emt 0:00:23] Threatens to win with ...Ne4.} 19. bxc3 {[%emt 0:01:42]} Qd6 {[%emt 0:05:37]} 20. Ba3 {[%emt 0:34:01]} Bc5 {[%emt 0:16:01]} (20... Qxa3 $17 21. g5 g6 $1 22. gxf6 Rad8) 21. Bxc5 $11 {[%emt 0:00:58]} Qxc5 {[%emt 0:01:13]} 22. Rad1 {[%emt 0:10:57]} h6 {[%emt 0:09:03]} 23. g3 {[%emt 0:06:29]} Rac8 {[%emt 0:01:37]} 24. g5 {[%emt 0:04:41]} hxg5 {[%emt 0:00:44]} 25. Qf5 {[%emt 0:02:21]} Qxc3 {[%emt 0:05:46]} 26. Qe6+ {[%emt 0:00:06]} Kh8 {[%emt 0:00:51]} 27. Qh3+ {[%emt 0:04:22][%mdl 1024] White has compensation.} Kg8 {[%emt 0:00:06]} 28. Qe6+ {[%emt 0:08:15]} (28. Bf5 $5 {[%cal Rf5e6]} g4 29. Be6+ Rf7 30. Qh4 $11) 28... Kh8 {[%emt 0:00:06]} 29. Qh3+ {[%emt 0:06:20]} Kg8 {[%emt 0:00:05]} 30. Bf5 {[%emt 0:02:17]} g4 $1 {[%emt 0:04:53]} 31. Be6+ {[%emt 0:00:03]} Rf7 {[%emt 0:00:04]} 32. Qg2 {[%emt 0:00:07]} Re8 {[%emt 0:00:36]} 33. Bxf7+ {[%emt 0:00:06]} Kxf7 {[%emt 0:00:02]} 34. Rc1 {[%emt 0:00:25]} Qb2 {[%emt 0:00:30]} 35. Rc7+ {[%emt 0:00:14]} Kg8 {[%emt 0:02:05]} 36. Qh1 {[%emt 0:02:34] [#]} (36. Rfc1 $11) 36... Qxa2 {[%emt 0:00:56] Active counter play!} (36... Qe5 $1 $17 {[%cal Re5c7]} 37. Rcc1 Ne4) 37. Qh4 {[%emt 0:00:02]} Qa5 {[%emt 0:02:32]} 38. Rb7 $40 {[%emt 0:00:41][%mdl 128] White wants to mate with Qg5. White attacks.} Qd2 {[%emt 0:00:28] Against Qg5} 39. Qh1 $2 {[%emt 0:00:59][%mdl 8192]} (39. Kg2 $11 {and White has nothing to worry.}) 39... b4 $2 {[%emt 0:03:46]} (39... Qg5 $19 {...Qe5 is the strong threat.} 40. Rb6 Ne4 41. Rxa6 Qf5) 40. Qg2 $2 {[%emt 0:00:00][%mdl 8192] White does not recover from this.} ({White has to play} 40. Qh4 $15) 40... a5 $19 {[%emt 0:00:00]} 41. f3 {[%emt 0:02:22]} (41. Qh1 $142 Qc3 42. Rb6) 41... Re2 {[%emt 0:07:33]} 42. Rb8+ {[%emt 0:00:11]} Kf7 {[%emt 0:01:22]} 43. Rf2 {[%emt 0:00:23]} Qe3 {[%emt 0:06:04] Black mates.} 44. fxg4 {[%emt 0:02:34] [#]} Re1+ $1 {[%emt 0:00:18]} ({Weaker is} 44... Kg6 45. Qf3 Qxf3 46. Rxf3 $17) 45. Kh2 {[%emt 0:00:03]} Qh6+ {[%emt 0:00:06] Weighted Error Value: White=0.94/Black=0.31} 0-1